bitfinex-derivatives/quotes_SOLF0:USTF0_20250705
["timestamp","ask_amount","ask_price","bid_price","bid_amount"]
[1751734199283,6.8458,146.04,146.02,247.9]
[1751734200680,4.77578628,146.04,146.03,199.88]
[1751734200884,4.77578628,146.06,146.03,199.88]
[1751734202574,6.8457,146.04,146.03,199.88]
[1751734204781,4.77578628,146.06,146.03,199.88]
[1751734204985,10.4917928,146.1,146.03,199.88]
[1751734205286,6.8451,146.06,146.03,206.726]
[1751734205484,6.8451,146.06,146.03,199.88]
[1751734206084,47.78,146.12,146.03,199.88]
[1751734206393,4.77578628,146.1,146.03,204.65578628]
[1751734206586,4.80674011,146.09,146.03,204.65578628]
[1751734206787,4.77578628,146.1,146.03,204.65578628]
[1751734207088,6.8441,146.08,146.04,6.8455]
[1751734207289,4.77578628,146.1,146.03,199.88]
[1751734207491,7.46910608,146.09,146.03,199.88]
[1751734207789,4.8099123,146.08,146.03,199.88]
[1751734207983,11.05777727,146.13,146.03,206.726]
[1751734208178,4.77578628,146.09,146.03,199.88]
[1751734208483,7.46910608,146.08,146.03,199.88]
[1751734208684,11.6546123,146.07,146.03,206.726]
[1751734208884,6.8447,146.07,146.03,199.88]
[1751734209685,6.844,146.08,146.03,199.88]
[1751734209881,7.15108628,146.13,146.03,199.88]
[1751734210087,18.01241638,146.12,146.05,4.77578628]
[1751734210291,6.8432,146.1,146.07,6.844]
[1751734210486,7.48396442,146.09,146.06,247.52]
[1751734210698,4.81987796,146.08,146.06,249.8332]
[1751734210994,6.8427,146.11,146.08,6.8437]
[1751734211191,12.35338602,146.1,146.09,199.8]
[1751734211791,19.19628602,146.1,146.09,199.8]
[1751734211994,19.20105944,146.1,146.09,199.8]
[1751734212195,19.20332957,146.1,146.09,199.8]
[1751734212393,19.20721251,146.1,146.09,199.8]
[1751734213390,19.20860495,146.1,146.09,199.8]
[1751734214691,12.36570495,146.1,146.09,199.8]
[1751734215099,7.49845325,146.1,146.09,199.8]
[1751734215400,7.50090654,146.1,146.09,206.6434]
[1751734218300,11.04424048,146.2,146.09,211.41578628]
[1751734218596,4.77578628,146.18,146.12,4.77578628]
[1751734218806,6.8404,146.16,146.13,247.4]
[1751734219004,7.54207872,146.15,146.13,247.4]
[1751734219199,7.54207872,146.14,146.13,247.4]
[1751734219607,7.54207872,146.14,146.13,254.2415]
[1751734221513,7.54207872,146.14,146.13,247.4]
[1751734222207,7.54136095,146.14,146.13,199.66]
[1751734222812,2.67219061,146.14,146.13,199.66]
[1751734223011,2.67219061,146.14,146.12,47.68]
[1751734223216,4.77578628,146.16,146.13,199.66]
[1751734223515,7.53954644,146.15,146.13,199.66]
[1751734223710,2.67130277,146.14,146.13,199.66]
[1751734224519,9.51230277,146.14,146.13,199.66]
[1751734225618,4.77578628,146.16,146.13,199.66]
[1751734226218,6.841,146.14,146.13,199.66]
[1751734227722,6.8408,146.15,146.13,199.66]
[1751734234724,4.77578628,146.17,146.13,199.66]
[1751734234924,6.841,146.14,146.13,199.66]
[1751734235527,6.8415,146.13,146.12,47.68]
[1751734235720,11.61728628,146.13,146.12,247.24]
[1751734237730,6.8415,146.13,146.12,247.24]
[1751734238235,4.6996,146.17,146.12,247.24]
[1751734238436,4.77578628,146.17,146.12,247.24]
[1751734238631,2.68179018,146.16,146.12,247.24]
[1751734238834,6.8408,146.15,146.12,247.24]
[1751734241435,6.841,146.14,146.12,247.24]
[1751734243837,6.841,146.14,146.12,254.0818]
[1751734247041,6.841,146.14,146.12,247.24]
[1751734248040,6.841,146.14,146.12,254.0819]
[1751734249544,6.8408,146.15,146.12,254.0819]
[1751734250844,6.8411,146.14,146.12,254.0819]
[1751734252041,4.77578628,146.17,146.12,247.24]
[1751734252248,13.20195463,146.16,146.12,247.24]
[1751734252447,4.77578628,146.17,146.12,247.24]
[1751734252649,6.8409,146.15,146.12,254.0818]
[1751734253248,6.8412,146.14,146.12,254.0818]
[1751734254143,11.05315619,146.19,146.12,252.01578628]
[1751734254342,18.23259564,146.18,146.12,252.01578628]
[1751734254647,6.8403,146.16,146.13,6.8412]
[1751734254850,6.8403,146.16,146.14,199.44]
[1751734255049,11.05315619,146.19,146.14,199.44]
[1751734255250,18.23488859,146.18,146.14,199.44]
[1751734255548,18.23488859,146.17,146.14,199.44]
[1751734255749,10.52397077,146.16,146.14,199.44]
[1751734255943,11.05315619,146.19,146.14,199.44]
[1751734256143,18.24877457,146.18,146.14,199.44]
[1751734256349,18.24877457,146.17,146.14,199.44]
[1751734256653,20.06589134,146.16,146.14,199.44]
[1751734256852,6.8404,146.16,146.14,199.44]
[1751734257148,6.8406,146.15,146.14,199.44]
[1751734259046,25.10736534,146.15,146.14,199.44]
[1751734260646,13.24035518,146.15,146.14,199.44]
[1751734260947,8.4476589,146.15,146.14,199.44]
[1751734261143,13.25734295,146.15,146.14,199.44]
[1751734261348,13.25734295,146.15,146.14,206.281]
[1751734261750,13.25734295,146.15,146.14,199.44]
[1751734262054,8.4476589,146.15,146.14,199.44]
[1751734262356,13.25805113,146.15,146.14,199.44]
[1751734262651,13.25805113,146.15,146.14,206.281]
[1751734264058,6.27736991,146.19,146.14,204.21578628]
[1751734264254,404.54,146.29,146.16,4.77578628]
[1751734264255,18.29248557,146.18,146.16,4.77578628]
[1751734264557,6.8386,146.2,146.17,253.7594]
[1751734264749,13.25544155,146.19,146.17,253.7594]
[1751734264949,11.05315619,146.24,146.18,4.77578628]
[1751734265154,18.28910147,146.23,146.18,4.77578628]
[1751734265355,13.25532632,146.22,146.18,4.77578628]
[1751734265555,13.25532632,146.21,146.18,7.16248628]
[1751734265751,6.27736991,146.24,146.2,4.77578628]
[1751734266053,13.24884642,146.23,146.21,199.34]
[1751734266254,6.27736991,146.26,146.21,199.34]
[1751734266255,6.27736991,146.26,146.21,206.1775]
[1751734266560,18.07199696,146.25,146.21,199.34]
[1751734266761,20.07952659,146.24,146.22,6.8373]
[1751734266961,6.8364,146.24,146.22,6.8373]
[1751734267165,6.8364,146.24,146.21,199.34]
[1751734267359,6.8364,146.24,146.21,206.1775]
[1751734267559,6.8364,146.24,146.22,47.54]
[1751734268852,6.8362,146.25,146.22,54.3772]
[1751734269055,4.77578628,146.28,146.22,47.54]
[1751734269254,8.44995288,146.27,146.22,52.31578628]
[1751734269550,4.77578628,146.29,146.22,52.31578628]
[1751734269755,13.22695381,146.28,146.22,52.31578628]
[1751734269957,4.77578628,146.29,146.22,52.31578628]
[1751734270152,6.8357,146.26,146.23,6.8365]
[1751734270361,4.77578628,146.3,146.24,199.3]
[1751734270755,4.89328985,146.29,146.24,199.3]
[1751734270950,2.3518,146.31,146.24,199.3]
[1751734271161,9.58538264,146.34,146.24,201.6117]
[1751734271355,6.27736991,146.36,146.24,201.6117]
[1751734271356,18.11637186,146.33,146.26,6.8354]
[1751734271559,4.77578628,146.34,146.27,246.82]
[1751734271759,4.88745032,146.33,146.27,246.82]
[1751734271959,4.77578628,146.34,146.27,246.82]
[1751734272160,8.48022742,146.33,146.27,246.82]
[1751734272360,4.77578628,146.34,146.27,246.82]
[1751734272658,6.8334,146.31,146.27,253.6548]
[1751734273056,6.8329,146.32,146.28,6.8345]
[1751734273259,4.77578628,146.34,146.27,47.52]
[1751734273555,4.77578628,146.32,146.28,199.26]
[1751734273958,4.77578628,146.3,146.29,199.26]
[1751734274158,11.60928628,146.3,146.29,199.26]
[1751734274360,4.77578628,146.3,146.27,47.52]
[1751734274556,4.77578628,146.3,146.28,199.24]
[1751734274861,6.834,146.29,146.28,199.24]
[1751734275655,6.8336,146.3,146.28,199.24]
[1751734276055,4.77578628,146.31,146.28,199.24]
[1751734276261,6.8339,146.3,146.28,199.24]
[1751734277066,6.834,146.29,146.28,199.24]
[1751734282368,4.77578628,146.29,146.23,638.24]
[1751734282672,4.77578628,146.27,146.24,199.16]
[1751734282971,6.8359,146.25,146.24,199.16]
[1751734288589,6.8356,146.26,146.24,199.16]
[1751734288793,4.77578628,146.27,146.24,199.16]
[1751734289683,6.8354,146.26,146.24,199.16]
[1751734293195,6.8359,146.25,146.24,199.16]
[1751734293389,4.77578628,146.28,146.24,199.16]
[1751734293786,6.8357,146.26,146.24,199.16]
[1751734297988,4.88950656,146.3,146.24,199.16]
[1751734297989,4.77578628,146.3,146.24,199.16]
[1751734298195,4.77578628,146.28,146.24,199.16]
[1751734298589,6.8358,146.26,146.24,199.16]
[1751734298988,4.77578628,146.26,146.23,47.5]
[1751734299296,4.77578628,146.24,146.19,47.46]
[1751734299597,6.8375,146.22,146.2,199.14]
[1751734300202,6.8375,146.22,146.21,199.14]
[1751734302394,6.838,146.21,146.19,47.46]
[1751734302691,6.838,146.21,146.2,199.14]
[1751734302895,6.8382,146.2,146.19,47.46]
[1751734303094,6.8382,146.2,146.19,246.6]
[1751734303601,6.8382,146.2,146.19,47.46]
[1751734303803,6.8382,146.2,146.19,246.6]
[1751734304194,6.8397,146.17,146.13,2.2184]
[1751734304396,4.77578628,146.2,146.14,47.46]
[1751734304600,13.25589142,146.19,146.14,246.6]
[1751734304801,7.52383081,146.18,146.14,246.6]
[1751734305016,4.77578628,146.2,146.14,47.46]
[1751734305304,13.18344924,146.19,146.15,199.16]
[1751734305502,4.78410587,146.18,146.14,47.46]
[1751734305705,4.77578628,146.18,146.15,199.16]
[1751734306005,14.29025266,146.17,146.16,199.16]
[1751734306309,6.8396,146.17,146.16,199.16]
[1751734307210,6.8394,146.18,146.16,199.16]
[1751734312299,4.77578628,146.23,146.17,199.18]
[1751734312504,7.39589988,146.22,146.17,199.18]
[1751734312698,4.77578628,146.21,146.17,199.18]
[1751734312904,6.8389,146.19,146.17,199.18]
[1751734313704,6.8389,146.19,146.18,199.18]
[1751734317212,6.8384,146.2,146.18,199.18]
[1751734319508,6.8387,146.19,146.18,199.18]
[1751734324614,6.8384,146.2,146.18,199.18]
[1751734339421,4.77578628,146.23,146.19,47.46]
[1751734339617,13.21399081,146.22,146.19,47.46]
[1751734339820,13.21399081,146.21,146.19,47.46]
[1751734340018,6.838,146.21,146.19,47.46]
[1751734341324,5.76231959,146.2,146.19,47.46]
[1751734341520,8.43728719,146.2,146.19,47.46]
[1751734341819,8.33728719,146.2,146.19,47.46]
[1751734342020,2.6749676,146.2,146.19,47.46]
[1751734342225,7.48257062,146.2,146.19,47.46]
[1751734344526,2.67625787,146.2,146.19,47.46]
[1751734344719,7.48829181,146.2,146.19,47.46]
[1751734346027,14.32649181,146.2,146.19,47.46]
[1751734347829,10.53554857,146.2,146.11,123.45308977]
[1751734348124,3.04725676,146.17,146.13,3.04725676]
[1751734348327,7.49522906,146.16,146.12,249.60725676]
[1751734348522,3.04939916,146.16,146.13,6.8412]
[1751734349730,6.8399,146.17,146.13,6.8412]
[1751734349928,14.33439269,146.16,146.13,6.8412]
[1751734350227,6.8402,146.16,146.14,199.14]
[1751734350628,6.8402,146.16,146.13,6.8412]
[1751734350827,6.8402,146.16,146.14,199.14]
[1751734352928,6.8402,146.16,146.14,205.981]
[1751734353132,6.8402,146.16,146.14,6.841]
[1751734353331,6.8402,146.16,146.15,199.14]
[1751734353528,7.47116492,146.16,146.15,199.14]
[1751734353734,13.24761825,146.16,146.15,199.14]
[1751734357731,2.67848239,146.16,146.15,199.14]
[1751734359136,6.8397,146.17,146.15,199.14]
[1751734361235,6.8397,146.17,146.15,205.9805]
[1751734361436,6.8394,146.18,146.15,199.14]
[1751734361632,5.74904044,146.17,146.15,199.14]
[1751734361834,6.28132767,146.21,146.16,4.7647815]
[1751734362037,8.42294332,146.2,146.17,47.44]
[1751734362237,5.74905091,146.19,146.17,52.2047815]
[1751734362433,5.74905091,146.18,146.17,59.0443815]
[1751734367442,6.28132767,146.22,146.18,6.8389]
[1751734367648,5.75151574,146.21,146.19,199.1]
[1751734367848,5.75151574,146.2,146.19,199.1]
[1751734368348,6.8378,146.21,146.19,199.1]
[1751734371147,2.272,146.24,146.19,199.1]
[1751734371350,13.25496604,146.23,146.19,199.1]
[1751734371650,13.25496604,146.22,146.19,199.1]
[1751734371844,6.838,146.21,146.19,199.1]
[1751734373145,6.8376,146.22,146.19,199.1]
[1751734373947,6.8376,146.22,146.19,205.9387]
[1751734374551,6.8376,146.22,146.19,199.1]
[1751734377757,6.8376,146.22,146.19,202.14654601]
[1751734377955,6.8379,146.21,146.19,199.1]
[1751734378254,16.32781352,146.2,146.16,47.4]
[1751734378454,3.04654601,146.18,146.17,199.02]
[1751734378757,8.82720009,146.18,146.17,199.02]
[1751734379154,3.04654601,146.18,146.17,199.02]
[1751734379453,12.62021801,146.18,146.17,199.02]
[1751734379756,6.8394,146.18,146.17,199.02]
[1751734380450,6.28132767,146.23,146.17,203.78275296]
[1751734380650,18.16050469,146.22,146.17,203.78275296]
[1751734380956,6.8387,146.19,146.17,199.02]
[1751734381156,4.76275296,146.23,146.17,199.02]
[1751734381454,13.25794245,146.22,146.17,199.02]
[1751734381650,20.09594245,146.21,146.17,203.78275296]
[1751734381856,6.838,146.21,146.17,203.78275296]
[1751734382556,6.838,146.21,146.18,6.839]
[1751734383258,4.76275296,146.23,146.17,199.02]
[1751734383457,5.76603238,146.22,146.17,199.02]
[1751734383656,5.76603238,146.21,146.17,199.02]
[1751734383858,12.60463238,146.2,146.17,199.02]
[1751734384157,6.8386,146.2,146.17,199.02]
[1751734384559,6.8387,146.19,146.17,199.02]
[1751734385955,6.8387,146.19,146.17,205.8596]
[1751734386456,6.8387,146.19,146.18,246.42]
[1751734388762,6.8384,146.2,146.18,246.42]
[1751734390059,6.8384,146.2,146.19,199.0]
[1751734390760,6.8384,146.2,146.17,6.8396]
[1751734390960,6.8384,146.2,146.18,246.4]
[1751734392156,6.838,146.21,146.18,253.2391]
[1751734392760,6.8375,146.22,146.19,6.8386]
[1751734394363,6.8379,146.21,146.19,6.8386]
[1751734395058,6.8374,146.22,146.2,6.8382]
[1751734395256,6.8374,146.22,146.21,199.0]
[1751734396065,6.837,146.23,146.21,199.0]
[1751734396466,6.837,146.23,146.21,205.8376]
[1751734397268,6.28132767,146.31,146.22,4.75606759]
[1751734397566,18.11666932,146.3,146.24,4.75606759]
[1751734397766,13.252229,146.29,146.25,198.98]
[1751734397963,6.28132767,146.32,146.25,198.98]
[1751734398164,18.14952515,146.31,146.25,198.98]
[1751734398365,6.8341,146.29,146.25,205.8156]
[1751734398568,6.28132767,146.32,146.25,198.98]
[1751734398766,6.8338,146.3,146.26,6.8354]
[1751734398964,7.4834841,146.29,146.26,6.8354]
[1751734399167,6.8338,146.3,146.26,6.8354]
[1751734399864,6.8341,146.29,146.26,6.8354]
[1751734401563,6.8341,146.29,146.25,205.8157]
[1751734401960,6.8341,146.29,146.25,198.98]
[1751734402773,6.8341,146.29,146.26,6.8353]
[1751734405969,6.8345,146.28,146.25,210.57093495]
[1751734408776,6.8849,146.33,146.26,6.8351]
[1751734408975,13.35762316,146.32,146.26,6.8351]
[1751734409176,4.87201362,146.31,146.26,6.8351]
[1751734409379,6.8343,146.29,146.26,6.8351]
[1751734411780,6.8338,146.3,146.27,6.8349]
[1751734412174,6.8338,146.3,146.28,47.36]
[1751734412374,6.8338,146.3,146.29,198.88]
[1751734412771,7.55971271,146.3,146.25,47.36]
[1751734412976,12.31507643,146.29,146.26,198.86]
[1751734413178,2.4528,146.28,146.26,198.86]
[1751734413380,2.4528,146.28,146.25,47.36]
[1751734413676,2.4528,146.28,146.26,198.86]
[1751734414073,6.8349,146.27,146.26,198.86]
[1751734418878,8.36982654,146.35,146.26,203.61523495]
[1751734419082,18.01131464,146.33,146.26,203.61523495]
[1751734419287,18.11464959,146.32,146.26,203.61523495]
[1751734419488,6.834,146.3,146.26,210.45063495]
[1751734419684,4.75523495,146.32,146.26,210.45063495]
[1751734419879,13.34031541,146.31,146.26,210.45063495]
[1751734420093,4.75523495,146.32,146.26,210.45063495]
[1751734420282,13.34016567,146.31,146.26,210.45063495]
[1751734420483,4.75523495,146.32,146.26,210.45063495]
[1751734420781,6.8341,146.29,146.26,210.45063495]
[1751734422284,6.8347,146.28,146.26,198.86]
[1751734422483,4.75523495,146.28,146.22,590.64]
[1751734422686,4.75523495,146.28,146.23,246.2]
[1751734422891,4.75523495,146.26,146.23,47.36]
[1751734423089,9.41776972,146.25,146.23,246.2]
[1751734423391,9.31493495,146.25,146.23,47.36]
[1751734424293,6.8363,146.24,146.23,47.36]
[1751734429594,11.3958,146.25,146.23,47.36]
[1751734429898,11.3958,146.25,146.21,6.8375]
[1751734429899,6.8361,146.25,146.21,11.59273495]
[1751734430092,6.8361,146.25,146.22,246.22]
[1751734433192,6.8365,146.24,146.22,246.22]
[1751734436599,6.28132767,146.32,146.22,47.36]
[1751734436795,29.27673418,146.31,146.23,203.61772926]
[1751734437103,6.8347,146.28,146.24,6.8361]
[1751734437301,6.8347,146.28,146.25,199.16]
[1751734437801,6.8347,146.28,146.25,205.9958]
[1751734439403,4.85571011,146.27,146.26,199.14]
[1751734440305,10.66469197,146.27,146.26,199.14]
[1751734440603,10.68647846,146.27,146.26,199.14]
[1751734441403,6.8342,146.29,146.26,199.14]
[1751734441710,13.39489568,146.28,146.26,199.14]
[1751734441899,6.8342,146.29,146.26,199.14]
[1751734442200,13.39267795,146.28,146.26,199.14]
[1751734442402,6.8342,146.29,146.26,199.14]
[1751734442602,13.39262964,146.28,146.26,199.14]
[1751734442803,6.8342,146.29,146.26,199.14]
[1751734443002,13.39262964,146.28,146.26,199.14]
[1751734443205,6.8342,146.29,146.26,199.14]
[1751734443404,13.39132533,146.28,146.26,199.14]
[1751734443710,6.8345,146.28,146.26,199.14]
[1751734445517,6.8339,146.3,146.26,205.9751]
[1751734445713,13.40149932,146.29,146.26,205.9751]
[1751734445913,13.40149932,146.28,146.26,205.9751]
[1751734446118,6.8339,146.3,146.26,205.9751]
[1751734446315,13.40791343,146.29,146.26,205.9751]
[1751734446516,10.71929033,146.28,146.26,205.9751]
[1751734446713,6.8339,146.3,146.26,205.9751]
[1751734446917,13.40779811,146.29,146.26,205.9751]
[1751734447113,6.8339,146.3,146.26,205.9751]
[1751734447114,10.71911223,146.28,146.26,205.9751]
[1751734447319,6.8339,146.3,146.26,205.9751]
[1751734447519,13.3941029,146.29,146.26,205.9751]
[1751734447720,10.70546994,146.28,146.26,205.9751]
[1751734447920,6.8342,146.29,146.26,205.9751]
[1751734448221,10.7054676,146.28,146.26,205.9751]
[1751734448422,6.8342,146.29,146.26,205.9751]
[1751734448721,10.70705782,146.28,146.26,205.9751]
[1751734448921,6.8342,146.29,146.26,205.9751]
[1751734449125,10.70706424,146.28,146.26,205.9751]
[1751734449420,6.8342,146.29,146.26,205.9751]
[1751734449620,10.70771184,146.28,146.26,205.9751]
[1751734449818,6.8342,146.29,146.26,205.9751]
[1751734450018,10.70771185,146.28,146.26,205.9751]
[1751734450218,6.8342,146.29,146.26,205.9751]
[1751734450415,10.70821673,146.28,146.26,205.9751]
[1751734450614,6.8342,146.29,146.26,205.9751]
[1751734450815,10.70826191,146.28,146.26,205.9751]
[1751734451016,6.8342,146.29,146.26,205.9751]
[1751734451213,10.70749094,146.28,146.26,205.9751]
[1751734451414,6.8342,146.29,146.26,205.9751]
[1751734451731,17.54271119,146.28,146.26,199.14]
[1751734452024,11.02912767,146.31,146.26,199.14]
[1751734452217,18.35697091,146.3,146.26,199.14]
[1751734452414,13.39630068,146.29,146.26,199.14]
[1751734452614,10.7072226,146.28,146.26,199.14]
[1751734452822,4.7478,146.31,146.26,199.14]
[1751734453023,18.35765781,146.3,146.26,199.14]
[1751734453224,20.23108707,146.29,146.26,205.9754]
[1751734453424,13.39688707,146.28,146.26,205.9754]
[1751734453623,6.8342,146.29,146.26,205.9754]
[1751734453826,13.39818682,146.28,146.26,199.14]
[1751734454020,6.8346,146.28,146.26,199.14]
[1751734463435,6.8342,146.29,146.26,199.14]
[1751734463632,13.41658881,146.28,146.26,199.14]
[1751734463832,6.8342,146.29,146.26,199.14]
[1751734464133,13.41658597,146.28,146.26,199.14]
[1751734464334,6.8342,146.29,146.26,199.14]
[1751734464532,13.41680711,146.28,146.26,199.14]
[1751734464732,6.8342,146.29,146.26,199.14]
[1751734465028,13.41907188,146.28,146.26,199.14]
[1751734465229,6.8342,146.29,146.26,199.14]
[1751734465433,13.41940343,146.28,146.26,199.14]
[1751734465632,6.8342,146.29,146.26,199.14]
[1751734465825,13.41930603,146.28,146.26,199.14]
[1751734466027,6.8342,146.29,146.26,199.14]
[1751734466230,13.42076694,146.28,146.26,199.14]
[1751734466526,6.8342,146.29,146.26,199.14]
[1751734466726,20.25521334,146.28,146.26,199.14]
[1751734466930,6.8345,146.28,146.26,199.14]
[1751734470240,4.90594059,146.27,146.26,199.14]
[1751734470642,6.8345,146.28,146.26,199.14]
[1751734471240,4.90557563,146.27,146.26,199.14]
[1751734473339,8.52681528,146.27,146.26,199.14]
[1751734473543,13.4249757,146.27,146.26,199.14]
[1751734473842,13.42497879,146.27,146.26,199.14]
[1751734476943,13.42497879,146.27,146.26,205.9754]
[1751734477142,13.42497879,146.27,146.26,202.18395764]
[1751734477840,13.42497879,146.27,146.26,209.01935764]
[1751734478748,7.59346076,146.27,146.26,209.01935764]
[1751734478948,6.8339,146.3,146.27,6.8349]
[1751734479248,13.49002218,146.29,146.27,9.8780976]
[1751734479448,13.49002218,146.28,146.27,9.87803485]
[1751734481844,3.04171682,146.37,146.27,9.88171682]
[1751734482045,4.98079554,146.36,146.33,3.04171682]
[1751734482241,4.98079554,146.35,146.34,198.78]
[1751734484543,6.8311,146.36,146.34,198.78]
[1751734484846,4.92871537,146.35,146.34,198.78]
[1751734485241,6.8311,146.36,146.34,198.78]
[1751734487350,6.8312,146.35,146.34,198.78]
[1751734491155,6.8321,146.33,146.32,47.34]
[1751734491356,6.8321,146.33,146.32,246.04]
[1751734491859,6.8319,146.34,146.32,246.04]
[1751734492952,6.8321,146.33,146.32,246.04]
[1751734493152,6.8321,146.33,146.32,47.34]
[1751734493352,6.8321,146.33,146.32,246.04]
[1751734494254,6.8319,146.34,146.32,246.04]
[1751734497860,4.95277033,146.37,146.33,203.41110268]
[1751734498055,7.46576236,146.36,146.33,203.41110268]
[1751734498258,7.46576236,146.35,146.33,203.41110268]
[1751734498561,6.8308,146.36,146.33,203.41110268]
[1751734499162,4.5946,146.39,146.33,210.24290268]
[1751734499357,18.23710953,146.38,146.33,210.24290268]
[1751734499559,13.28538993,146.37,146.33,210.24290268]
[1751734499760,4.81626933,146.36,146.33,210.24290268]
[1751734500059,6.831,146.36,146.33,210.24290268]
[1751734500360,6.831,146.36,146.33,203.41110268]
[1751734500562,6.8312,146.35,146.33,198.66]
[1751734501161,6.8309,146.36,146.33,198.66]
[1751734502157,4.75110268,146.34,146.16,20.5]
[1751734502462,4.75110268,146.3,146.22,4.75110268]
[1751734502761,11.6590461,146.29,146.24,6.8361]
[1751734502962,4.75110268,146.3,146.25,199.8]
[1751734503155,4.82503552,146.29,146.25,199.8]
[1751734503355,4.75110268,146.32,146.25,206.6355]
[1751734503560,13.31623476,146.31,146.25,206.6355]
[1751734503858,4.75110268,146.32,146.25,206.6355]
[1751734504058,13.31522658,146.31,146.25,206.6355]
[1751734504261,4.75110268,146.32,146.25,206.6355]
[1751734504463,6.8343,146.29,146.25,206.6355]
[1751734504853,6.8346,146.28,146.25,206.6355]
[1751734505559,6.8346,146.28,146.25,199.8]
[1751734506859,6.8351,146.27,146.25,199.8]
[1751734507460,6.8351,146.27,146.24,6.8362]
[1751734507661,6.8351,146.27,146.24,206.4562]
[1751734508363,6.8351,146.27,146.21,47.32]
[1751734508364,4.75110268,146.28,146.23,199.62]
[1751734508563,4.75110268,146.28,146.21,47.32]
[1751734508865,4.75110268,146.28,146.22,6.837]
[1751734509062,5.83782558,146.27,146.22,199.6]
[1751734509262,6.8357,146.26,146.22,206.4372]
[1751734510560,4.75110268,146.28,146.22,206.4372]
[1751734510760,2.61620241,146.27,146.22,206.4372]
[1751734511072,4.75110268,146.28,146.22,206.4372]
[1751734511267,6.8357,146.26,146.22,206.4372]
[1751734512068,6.8363,146.25,146.22,199.54]
[1751734512764,6.8363,146.25,146.21,54.1577]
[1751734512967,4.75110268,146.26,146.21,246.84]
[1751734513460,4.75110268,146.26,146.21,47.32]
[1751734513669,5.83278797,146.25,146.21,47.32]
[1751734513869,4.75110268,146.26,146.21,47.32]
[1751734514068,6.8369,146.23,146.21,47.32]
[1751734516271,6.8366,146.24,146.21,47.32]
[1751734516772,4.75110268,146.26,146.21,47.32]
[1751734517868,6.8366,146.24,146.21,47.32]
[1751734520876,6.8366,146.24,146.21,54.1577]
[1751734521271,6.8366,146.24,146.21,47.32]
[1751734521468,6.8369,146.23,146.21,47.32]
[1751734521671,6.8369,146.23,146.21,246.66]
[1751734525280,4.6197,146.27,146.21,253.4977]
[1751734525975,6.8367,146.24,146.21,246.66]
[1751734527480,6.8367,146.24,146.21,253.4977]
[1751734529380,6.8367,146.24,146.22,4.75110268]
[1751734529583,373.73510652,146.4,146.22,4.75110268]
[1751734529584,7.28852803,146.33,146.23,199.52]
[1751734529787,6.9798,146.33,146.25,4.75110268]
[1751734529983,17.80204199,146.32,146.26,199.64]
[1751734530187,8.36406069,146.31,146.26,199.64]
[1751734530377,4.75110268,146.32,146.26,199.64]
[1751734530583,8.36579879,146.31,146.26,199.64]
[1751734530782,4.75110268,146.32,146.26,199.64]
[1751734530990,6.8344,146.29,146.26,199.64]
[1751734534788,6.8344,146.29,146.25,6.8358]
[1751734534990,6.8346,146.28,146.26,199.46]
[1751734535192,6.8346,146.28,146.25,6.8358]
[1751734535493,4.75110268,146.28,146.26,199.44]
[1751734535693,6.8354,146.27,146.23,47.62]
[1751734535887,4.75110268,146.28,146.24,199.48]
[1751734536283,6.8357,146.26,146.23,47.62]
[1751734536488,6.8357,146.26,146.24,199.5]
[1751734537994,6.835,146.27,146.24,199.5]
[1751734538293,6.835,146.27,146.25,199.42]